Cogmind - Beta 17.1 *** ADVENTURER MODE // 2026.09.09 @ 13:03:49 Player: KYUESTHAI Result: Self-destructed Performance ------------- Evolutions (1) 500 Regions Visited (2) 400 Robots Destroyed (15) 75 Value Destroyed (259) 259 Prototype IDs (0) 0 Alien Tech Used (0) 0 Bonus (0) 0 TOTAL SCORE: 1234 Bonus ------- None Cogmind --------- Core Integrity 357/400 Matter 243/300 Energy 100/100 System Corruption 0% Temperature Cool (0) Movement Flying (37) Location -9/Materials Parts ------- > --- POWER (1) -------- (None) > --- PROPULSION (3) --- Flight Unit Flight Unit > --- UTILITY (3) ------ Visual Processing Unit Sensor Array Improved Signal Interpreter > --- WEAPON (2) ------- Small Laser Light Assault Rifle > --- INVENTORY (5) ---- Ion Engine Wheel Sensor Array Hammer Peak State ------------ > --- POWER ------------ Light Ion Engine > --- PROPULSION ------- Flight Unit Flight Unit VTOL Module > --- UTILITY ---------- Visual Processing Unit Sensor Array Improved Signal Interpreter > --- WEAPON ----------- Small Laser Light Assault Rifle > --- INVENTORY -------- Ion Engine Wheel Sensor Array Hammer [Rating: 13] Favorites ----------- Power Ion Engine Engine Ion Engine Propulsion Compact Wheel Wheel Compact Wheel Flight Unit Flight Unit Utility Targeting Computer Device Sensor Array Processor Targeting Computer Protection Core Shielding Weapon Hammer Energy Gun EM Pulse Gun Ballistic Gun Light Assault Rifle Special Weapon Welding Torch Impact Weapon Hammer Build | -11 -10 -9 ------- Run | Yrd Mat Mat Slots Evolved 2 | . . 2 Power . | . . . Propulsion 1 | . . 1 Utility 1 | . . 1 Weapon . | . . . Parts Attached 26 | 5 12 9 Power 3 | 1 1 1 Engine 3 | 1 1 1 Core . | . . . Reactor . | . . . Propulsion 6 | 2 1 3 Treads . | . . . Leg . | . . . Wheel 3 | 2 1 . Hover . | . . . Flight 3 | . . 3 Utility 11 | . 7 4 Device 4 | . 3 1 Storage . | . . . Processor 5 | . 2 3 Hackware . | . . . Protection 2 | . 2 . Artifact . | . . . Weapon 6 | 2 3 1 Energy Gun 3 | 2 1 . Energy Cannon . | . . . Ballistic Gun 1 | . . 1 Ballistic Cannon . | . . . Launcher . | . . . Special Weapon 1 | . 1 . Impact Weapon 1 | . 1 . Slashing Weapon . | . . . Piercing Weapon . | . . . Special Melee Weapon . | . . . Unidentified Prototypes . | . . . Parts Lost 9 | . 7 2 Power 2 | . 1 1 Propulsion 3 | . 2 1 Utility 2 | . 2 . Weapon 2 | . 2 . Highest Loss Streak 3 | . 3 2 To Critical Strikes . | . . . Average Backups 2 | 1 1 3 Power . | . . . Propulsion . | . . . Utility . | . . . Weapon . | . . . Tool/Special . | . . . Unused Backups . | . . . Power . | . . . Propulsion . | . . . Utility . | . . . Weapon . | . . . Tool/Special . | . . . Average Slot Usage (%) 85 | . 79 97 Engine 12 | . 13 11 Wheel 16 | . 24 . Flight 9 | . . 30 Device 8 | . 5 13 Processor 12 | . 9 18 Energy Gun 10 | . 10 11 Ballistic Gun 2 | . . 7 Special Weapon 1 | . 2 . Impact Weapon 9 | . 12 3 Peak Build Rating 13 | 5 7 13 Average Rating 7 | 3 5 11 On Entrance 3 | . 5 6 Avg Prop Armor Cover (%) . | . . . Naked Turns . | . . . Heaviest Build 10 | 9 10 10 Greatest Support 32 | 26 32 12 Greatest Overweight (x) 2 | . 2 1 Average Overweight (x) . | . . . Largest Inventory Capacity 5 | 5 5 5 Average Capacity 5 | 5 5 5 Most Carried 5 | 5 5 5 Average Carried 2 | 2 1 3 Final Capacity 5 | 5 5 5 Final Carried 4 | 1 1 4 Class Distribution -------------------- 70% | Mutant 16% | Scout 12% | Sprinter Dominant Class ---------------- Mutant | -10/Materials Scout | -9/Materials Resources | -11 -10 -9 ----------- Run | Yrd Mat Mat Matter Collected 455 | 195 210 50 Remotely . | . . . Salvage Created 372 | . 322 50 Parts 21 | . 11 10 Haulers Intercepted 1 | . 1 . Recyclers Shooed . | . . . Parts Field Recycled . | . . . Retrieved Matter . | . . . Parts Self-Destructed . | . . . Prevented . | . . . Parts Restored . | . . . Kills | -11 -10 -9 ------- Run | Yrd Mat Mat Combat Hostiles Destroyed 12 | . 9 3 Melee 2 | . 2 . Guns 7 | . 4 3 Cannons 1 | . 1 . AOE 1 | . 1 . Classes Destroyed 4 | . 4 . Hauler 1 | . 1 . Watcher 2 | . 2 . Swarmer 9 | . 6 3 Grunt 3 | . 3 . Best Kill Streak 4 | . 4 3 Combat Bots Only 3 | . 3 3 Max Kills in Single Turn 2 | . 2 1 Gunslinging . | . . . Exploded 1 | . 1 . Melee 1 | . 1 . Uniques/NPCs Destroyed . | . . . Combat | -11 -10 -9 -------- Run | Yrd Mat Mat Hostile Shots Fired 101 | . 65 36 Missed 25 | . 12 13 Hits 76 | . 53 23 Projectile 76 | . 53 23 Critical Strikes 1 | . . 1 Damage Taken 698 | . 485 213 Core 205 | . 162 43 Absorbed by Shields . | . . . Ignored by Resistances 210 | . 146 64 Core Remaining (%) 67 | 100 35 . Volleys Fired 56 | . 46 10 Largest 2 | . 1 2 Hottest 60 | . 40 60 Shots Fired 63 | . 46 17 Gun 38 | . 21 17 Cannon . | . . . Launcher . | . . . Special 25 | . 25 . Kinetic 7 | . . 7 Thermal 35 | . 25 10 Explosive . | . . . Electromagnetic 21 | . 21 . Robot Hit Streak 11 | . 11 5 Robot Miss Streak 3 | . 2 3 Penetration Max . | . . . Secondary Targets . | . . . Shots Hit Robots 56 | . 43 13 Core Hits 23 | . 19 4 Critical Kills . | . . . Critical Parts Destroyed 1 | . 1 . Critical Strikes 1 | . 1 . Smash 1 | . 1 . Melee Attacks 8 | . 8 . Impact 8 | . 8 . Slashing . | . . . Piercing . | . . . Sneak Attacks . | . . . Combat Hostiles . | . . . Follow-up Attacks . | . . . Damage Inflicted 767 | . 637 130 Guns 293 | . 163 130 Cannons . | . . . Explosions 156 | . 156 . Melee 245 | . 245 . Ramming . | . . . Kinetic 37 | . . 37 Thermal 322 | . 229 93 Explosive . | . . . Electromagnetic 163 | . 163 . Impact 245 | . 245 . Slashing . | . . . Piercing . | . . . Highest Corruption . | . . . Average Corruption . | . . . Corruption Purged . | . . . Corruption Blocked . | . . . Overload Shots . | . . . Overflow Damage 83 | . 83 . Projectiles . | . . . Explosions 8 | . 8 . Melee 75 | . 75 . Knockbacks . | . . . Impact . | . . . Kinetic . | . . . Secondary . | . . . Self-Inflicted Damage 43 | . 43 . Shots 2 | . 2 . Rammed . | . . . Targets Rammed . | . . . Kicked . | . . . Crushed . | . . . Highest Temperature 59 | . 12 59 Average Temperature 18 | . 11 23 Received Heat Transfer 342 | . 210 132 Siege Activations . | . . . Martial Activations . | . . . Shielding Activations . | . . . Robots Disrupted . | . . . Combat Hostiles . | . . . Robots Corrupted 1 | . 1 . Combat Hostiles 1 | . 1 . Parts Fried 3 | . 3 . Impact Corruptions 4 | . 4 . Robots Melted . | . . . Combat Hostiles . | . . . Parts Melted 2 | . 2 . Heat Transferred 975 | . 775 200 Parts Sabotaged . | . . . Parts Stolen . | . . . Parts Stripped . | . . . Power Chain Reactions 2 | . 2 . Alert | -11 -10 -9 ------- Run | Yrd Mat Mat Maximum Alert Level . | . . . Low Security (%) 100 | 100 100 100 Level 1 . | . . . Level 2 . | . . . Level 3 . | . . . Level 4 . | . . . Level 5 . | . . . High Security . | . . . Max Security . | . . . Peak Influence 195 | . 93 195 Initial . | . . . Average 51 | . 26 111 Influence Increases 605 | . 310 295 Destroy 0b10 Robot/C 240 | . 180 60 Destroy 0b10 Robot/NC 15 | . 15 . Destroy Leader 46 | . 36 10 Successful Hack 38 | . 23 15 Disable Machine 18 | . 18 . Destroy Structure 8 | . 8 . Partial Spotted 15 | . . 15 Lose Combat Pursuer 225 | . 30 195 Influence Decreases 490 | . 310 180 Time Decay 440 | . 280 160 Lost Part 50 | . 30 20 Squads Dispatched 2 | . . 2 Investigation 1 | . . 1 Extermination . | . . . Reinforcement 1 | . . 1 Assault . | . . . Garrison . | . . . Intercept . | . . . Searches Triggered . | . . . Construction Impeded . | . . . Haulers Reinforced . | . . . Active Scanning Responses . | . . . Cargo Convoy Interrupts . | . . . Stealth | -11 -10 -9 --------- Run | Yrd Mat Mat Distress Signals 3 | . 1 2 Communications Jammed . | . . . Distress Signals . | . . . Times Spotted 32 | . 15 17 Peak Tracking Total 9 | . 4 9 Tactical Retreats 7 | . 1 6 Traps | -11 -10 -9 ------- Run | Yrd Mat Mat Traps Triggered 2 | . 2 . Indirectly . | . . . Trap Hack Attempts . | . . . Triggered . | . . . Disarmed . | . . . Reprogrammed . | . . . Reused . | . . . Traps Extracted . | . . . Installed . | . . . Triggered . | . . . Objects Rigged 2 | . . 2 Machines | -11 -10 -9 ---------- Run | Yrd Mat Mat Machines Disabled 2 | . 2 . Max in Single Turn 2 | . 2 . Machines Repaired . | . . . Machines Dismantled . | . . . Machines Sabotaged . | . . . Overloaded Fab Kills . | . . . Hacking | -11 -10 -9 --------- Run | Yrd Mat Mat Machines Accessed 12 | . 8 4 Terminals 12 | . 8 4 Fabricators . | . . . Repair Stations . | . . . Recycling Units . | . . . Scanalyzers . | . . . Garrison Access . | . . . Total Hacks 40 | . 21 19 Successful 26 | . 12 14 Failed 14 | . 9 5 Catastrophic 1 | . 1 . Database Lockouts . | . . . Manual 29 | . 14 15 Terminals 40 | . 21 19 Fabricators . | . . . Repair Stations . | . . . Recycling Units . | . . . Scanalyzers . | . . . Garrison Access . | . . . Terminal Hacks 10 | . 7 3 Record 1 | . 1 . Branch Access Points 1 | . . 1 Emergency Access Points 1 | . 1 . Alert Level 2 | . 1 1 Locate Traps 1 | . 1 . Dispatch Records 1 | . 1 . Investigation Status 1 | . . 1 Zone Layout 2 | . 2 . Fabricator Hacks . | . . . Repair Station Hacks . | . . . Recycling Unit Hacks . | . . . Scanalyzer . | . . . Garrison Access Hacks . | . . . Unauthorized Hacks 16 | . 5 11 Terminals 16 | . 5 11 Track 3 | . . 3 Assimilate 2 | . . 2 Botnet 9 | . 5 4 Detonate 2 | . . 2 Fabricators . | . . . Repair Stations . | . . . Recycling Units . | . . . Scanalyzers . | . . . Garrison Access . | . . . Data Cores Recovered . | . . . Used . | . . . Hacking Detections 7 | . 4 3 Full Trace Events 1 | . . 1 Feedback Events . | . . . Feedback Blocked . | . . . Robot Schematics Acquired . | . . . Robots Built . | . . . Authchips . | . . . Time . | . . . Total Robot Build Rating . | . . . Part Schematics Acquired . | . . . Parts Built . | . . . Authchips . | . . . Time . | . . . Total Part Build Rating . | . . . Part Studies Acquired . | . . . Parts Repaired . | . . . Time . | . . . Parts Recycled . | . . . Recycled Matter . | . . . Retrieved Matter . | . . . Retrieved Components . | . . . Parts Scanalyzed . | . . . Part Schematics Acquired . | . . . Parts Damaged . | . . . Bothacking | -11 -10 -9 ------------ Run | Yrd Mat Mat Used RIF Installer . | . . . Robots Hacked . | . . . Non-combat . | . . . Combat . | . . . Robot Hacks Applied . | . . . Relay Couplers Released . | . . . Fabnet Peak Effective % . | . . . Robots Rewired . | . . . Allies Hacked . | . . . Hacks Repelled . | . . . Allies | -11 -10 -9 -------- Run | Yrd Mat Mat Total Allies . | . . . Largest Group . | . . . Highest-Rated Group . | . . . Highest-Rated Ally . | . . . Total Orders . | . . . Ally Attacks . | . . . Total Damage . | . . . Kills . | . . . Allies Corrupted . | . . . Allies Melted . | . . . Intel | -11 -10 -9 ------- Run | Yrd Mat Mat Active Infowar (turns) 760 | . 378 382 Optics 284 | . . 284 Sensors 495 | . 113 382 Structural 206 | . 206 . T.N.C. 59 | . 59 . Robot Analysis Total . | . . . Derelict Logs Recovered . | . . . Drone Launches . | . . . Drone Recoveries . | . . . Exploration | -11 -10 -9 ------------- Run | Yrd Mat Mat Turns Passed 1246 | 53 811 382 Spaces Moved 985 | 43 486 456 Core 20 | 13 7 . Treads . | . . . Legs . | . . . Wheels 522 | 30 479 13 Hover . | . . . Flight 443 | . . 443 Fastest Speed 32 | 50 50 32 Average Speed 65 | 77 94 33 Slowest Speed 150 | 90 150 117 Overloaded Moves . | . . . Propulsion Burnouts . | . . . Robots Hopped 4 | . . 4 Potential Cave-ins . | . . . Cave-ins Triggered . | . . . Exploration Rate (%) 38 | 3 75 37 Regions Visited 2 Branch Regions . Pre-discovered Areas . | . . . Known Exits Taken . | . . . Unknown Exits Taken 2 | 1 1 . Scrap Searched . | . . . Spaces Dug . | . . . Terrain Destroyed 7 | . 7 . Melee . | . . . Projectile . | . . . AOE 7 | . 7 . Terrain Rammed . | . . . Walls Destroyed . | . . . Machines Disabled . | . . . Actions | -11 -10 -9 --------- Run | Yrd Mat Mat Total 1502 | 61 773 668 Wait 388 | 9 198 181 Move 975 | 42 485 448 Hop 4 | . . 4 Pick Up 27 | 5 14 8 Fast Attach 1 | 1 . . Attach 30 | 4 16 10 Detach 9 | . 2 7 Swap 2 | . 2 . Drop 2 | . 2 . Fire 56 | . 46 10 Melee 8 | . 8 . Ram . | . . . Kick . | . . . Crush . | . . . Escape Stasis . | . . . Rewire . | . . . Trap . | . . . Miscellaneous . | . . . Route ------- -11/Scrapyard -10/Materials (discovered 3 exits: *Mat x2 / [*Min]) -9/Materials (discovered 4 exits: [*Mat] / Min / *Sto x2) History --------- Turn | Location | Event 10 | -11/Scrapyard | Discovered new exit (range 16) 54 | -11/Scrapyard | Entered Materials 108 | -10/Materials | Discovered new exit (range 11) 314 | -10/Materials | Build established: Mutant 371 | -10/Materials | Discovered new exit (range 18) 413 | -10/Materials | Discovered new exit (range 13) 772 | -10/Materials | Core integrity fell below 50% 814 | -10/Materials | Lost 3 parts (1p1u1w) 865 | -10/Materials | Entered another Materials area 865 | -9/Materials | Evolved 2 slots: Propulsion x1, Utility x1 911 | -9/Materials | Discovered new exit (range 8) 951 | -9/Materials | Discovered new exit (range 11) 1066 | -9/Materials | Identified exit to Mines 1066 | -9/Materials | Identified exit to Storage 1247 | -9/Materials | Self-destructed Last Messages --------------- Scanning machine control network... No applicable machines found. >>Trojan(Track) Trojan loaded successfully. Testing... Tracking enabled and active. 01074_ ALERT: Suspicious activity at Terminal M006. Dispatching Investigation squad. 01074_ K-01 Serf cleans the Terminal. 01080_ W-16 Scout distress signal alerts nearby ally. 01124_ O-16 Technician: "IFF HANDSHAKE FAILED. SECURING TERMINAL." 01125_ O-16 Technician uses terminal to summon reinforcements. 01125_ ALERT: Hostiles spotted, dispatching reinforcements to Terminal M003. 01125_ O-16 Technician locks terminal. 01244_ Lgt. Ion Engine destroyed. 01245_ VTOL Module destroyed. Map ----- +----------------------------------------------------+ | ?????????????????????????????????????????????????? | | ??????????????????######+????????????????????????? | | ?????????????????? ??#####?????????????????? | | ?????????????????? ? ?????????????????? | | ??????????????????? ??????????????????? | | ???????????????#??? "" ??????????????????? | | ???????????????# ?""" T" ??????????????????? | | ???????????????# """ "" ??????????????????? | | ???????????????# """ ??????????????????? | | ???????????????? #??????????????????? | | ?????????????????? !! #############??????? | | ?????????????????? """ !! # #??????? | | ???????????????# """ # #??????? | | ###????????????# """ # """ """ #??????? | | #????????????# + """ """ #??????? | | #????????????# # """ """ #??????? | | " #????????????# ######## # #??????? | | " #???????????????????????# # #??????? | | " #???????????????????????# ####/############### | | " #???????????????????????# #?# | | " #???????????????????????# #?# w | | #????????????????######## #?# | | ###############????# # #?# #######+###### | | ???#! # #?# #????????????? | | ???# " # #?# #????????????? | | ???# """ @# #?# #????????????? | | #/#######??????????# """ g# #?# #??????????### | | #?????????????# """g # #?# #??????????# | | = #?????????????# "" + #?# #??????????# | | #?????????????# """ # #?# ############ | | "T" #?????????????# "" #####?# w ## [ # | | """ ######????????# """ a#?????# ## # | | + #????????# " #?????# ## """ # | | ######### #????????# #?????# ## g """ # | | ????????# #????????# #?????# ## "T" """ # | | ????????# #????????########?????# ## """ ### | | ????????# #?????????????????????# ######+####### | | ???????## ####???###????????????# k | | ???????# #####T#####????????# s s | | ???????# #????????# #########s###### | | ???????# > #????????# #??# u #????? | | ???????# #????????# ## #????? | | ???????# ####### + ???# ## ####### | | ???????#######?????# # ?# ### ### | | ???????????????????# #??? = ?# #?######??# """ | | ??????????????????## ##???????# #?????????# "R | | ???????????######## ######### #?????????# """ | | ???????????# r #?????????# | | ???????????# T #?????????# | | ???????????# ################ | +----------------------------------------------------+ Best States ------------- Heat Dissipation 28 Energy Generation 10 Energy Capacity 250 Matter Stores 300 Matter Capacity 300 Sight Range 18 Robot Scan Range 14 Terrain Scan Density 10 Resistance: KI 20 Resistance: TH 20 Resistance: EX 20 Resistance: EM 20 Resistance: I 20 Resistance: S 20 Resistance: P 20 Core Shielding 20 Evasion (%) 63 Targeting Accuracy 6 Offensive Hacking 10 Item Schematics ----------------- None Robot Schematics ------------------ None Fabricated ------------ Nothing Repaired ---------- Nothing Studied --------- None Alien Tech Used ----------------- None Achievements -------------- None Challenges ------------ None Game ------ Seed ReactionSigixRay Manual? 0 Play Time 00:28:00 Cumulative 20.9 hours Start 2026.09.01 @ 20:22:15 End 2026.09.09 @ 13:03:49 Sessions 7 Manual Loads 0 Difficulty Adventurer Special Mode None Game No. 21 Rogue 0 Adventurer 21 Explorer 0 Win Type - Total 0 Types 0/0/0/0/0/0/0/0/0/0 Lore% 25 Gallery% 20 Achievement% 17 Wizard Run 0 Options --------- Layout 1 ASCII 0 Keyboard 0 Movement Mouse Keybinds 0 Fullscreen 1 Font 32/SmallcapsGlow Map View 25x20 Zoom Use 93% Tactical HUD 1 Map Filters NONE Filters NONE Steam 1 RUN: 0dcca4da-9f31-45da-8f45-73ea75c7ced6